bitfinex/quotes_BTCUSD_20241111
["timestamp","ask_amount","ask_price","bid_price","bid_amount"]
[1731284885888,0.123946,80680.0,80668.0,0.252928]
[1731284885889,0.12396,80672.0,80665.0,0.001682]
[1731284886091,0.123967,80666.0,80665.0,0.001682]
[1731284886301,0.24990921,80666.0,80665.0,0.001682]
[1731284886502,0.27290921,80666.0,80665.0,0.001682]
[1731284888388,0.28351516,80666.0,80665.0,0.001682]
[1731284889117,0.12594221,80666.0,80665.0,0.001682]
[1731284889323,0.65935632,80669.0,80665.0,0.001682]
[1731284889324,0.65935632,80669.0,80668.0,0.123964]
[1731284889531,0.26121936,80696.0,80684.0,0.12394]
[1731284889532,0.01293577,80685.0,80684.0,0.12394]
[1731284889766,0.18759966,80687.0,80686.0,0.123937]
[1731284890223,0.12594221,80695.0,80682.0,0.005]
[1731284890653,0.12594221,80695.0,80684.0,0.247878]
[1731284890868,0.123927,80693.0,80684.0,0.247878]
[1731284891077,0.12594221,80692.0,80687.0,0.123935]
[1731284891295,0.12594221,80692.0,80684.0,0.247878]
[1731284891498,0.12594221,80692.0,80685.0,0.123938]
[1731284891747,0.12594221,80692.0,80682.0,0.005]
[1731284892157,0.123929,80691.0,80685.0,0.123937]
[1731284892584,0.12594221,80692.0,80686.0,0.123936]
[1731284892808,0.12594221,80692.0,80683.0,0.247883]
[1731284893037,0.12594221,80692.0,80684.0,0.123939]
[1731284893038,0.12393,80691.0,80684.0,0.123939]
[1731284893251,0.12594221,80692.0,80686.0,0.123937]
[1731284893690,0.24987021,80692.0,80686.0,0.123937]
[1731284894403,0.24987021,80692.0,80685.0,0.123938]
[1731284894614,0.24987021,80692.0,80682.0,0.005]
[1731284894615,0.65935632,80691.0,80682.0,0.005]
[1731284894838,0.65935632,80691.0,80683.0,0.002]
[1731284895098,0.65935632,80691.0,80690.0,0.123931]
[1731284895311,0.65935632,80696.0,80687.0,0.252871]
[1731284895511,0.65935632,80696.0,80695.0,0.123923]
[1731284895716,0.65935632,80696.0,80689.0,0.123932]
[1731284895921,0.65935632,80696.0,80690.0,0.123929]
[1731284896129,0.65935632,80696.0,80688.0,0.005]
[1731284896333,0.000841,80700.0,80699.0,0.133917]
[1731284896555,0.000841,80700.0,80699.0,0.135917]
[1731284898339,0.0114757,80725.0,80699.0,0.135917]
[1731284898340,0.000841,80725.0,80716.0,0.012]
[1731284898639,0.000841,80725.0,80716.0,0.34817765]
[1731284898849,0.000841,80725.0,80724.0,0.138878]
[1731284899166,0.000841,80725.0,80724.0,0.47910686]
[1731284900575,0.000841,80725.0,80724.0,0.58910686]
[1731284901388,0.00084,80747.0,80746.0,0.133845]
[1731284906214,0.0110684,80747.0,80736.0,0.005]
[1731284906377,0.123848,80744.0,80743.0,0.005]
[1731284906580,0.00084,80747.0,80742.0,0.005]
[1731284906784,0.123848,80744.0,80742.0,0.005]
[1731284907003,0.123851,80743.0,80741.0,0.005]
[1731284907225,0.123847,80745.0,80741.0,0.005]
[1731284907420,0.00084,80747.0,80741.0,0.005]
[1731284907625,0.00084,80747.0,80746.0,0.123845]
[1731284908034,0.00084,80747.0,80744.0,0.252696]
[1731284908237,0.00084,80747.0,80746.0,0.123845]
[1731284908967,0.00084,80747.0,80744.0,0.128848]
[1731284909112,0.00084,80747.0,80744.0,0.005]
[1731284909319,0.00084,80747.0,80746.0,0.123845]
[1731284909751,0.00084,80747.0,80746.0,0.135845]
[1731284909951,0.00084,80747.0,80746.0,0.42723165]
[1731284910163,0.00084,80747.0,80746.0,0.207945]
[1731284911040,0.00084,80747.0,80746.0,0.214945]
[1731284911479,0.00084,80747.0,80746.0,0.212945]
[1731284912399,0.00084,80747.0,80746.0,0.133845]
[1731284912831,0.00084,80747.0,80746.0,0.005]
[1731284913033,0.00084,80747.0,80746.0,0.133845]
[1731284913669,0.00084,80747.0,80746.0,0.135845]
[1731284915047,0.00084,80747.0,80746.0,0.26178721]
[1731284917576,0.000702,80752.0,80746.0,0.26178721]
[1731284917577,0.000702,80752.0,80749.0,0.32994]
[1731284917787,0.09169242,80792.0,80763.0,0.135819]
[1731284917788,0.18779966,80772.0,80763.0,0.135819]
[1731284917951,0.18779966,80772.0,80763.0,0.133819]
[1731284918374,0.0002,80772.0,80763.0,0.135819]
[1731284918572,0.0002,80772.0,80763.0,0.125819]
[1731284919359,0.0002,80772.0,80763.0,0.159505]
[1731284919612,0.0002,80772.0,80763.0,0.33174721]
[1731284919863,0.0002,80772.0,80765.0,0.130816]
[1731284920084,0.0002,80772.0,80771.0,0.125806]
[1731284920736,0.0002,80772.0,80771.0,0.123806]
[1731284921788,0.0002,80772.0,80771.0,0.25474821]
[1731284921960,0.0002,80772.0,80771.0,0.29418421]
[1731284922419,0.0002,80772.0,80771.0,0.25174821]
[1731284923394,0.0002,80772.0,80771.0,0.25674821]
[1731284923591,0.0002,80772.0,80771.0,0.29418421]
[1731284923837,0.001041,80772.0,80771.0,0.29418421]
[1731284924096,0.03667697,80811.0,80783.0,0.002]
[1731284924300,0.09169242,80820.0,80772.0,0.0463]
[1731284924301,0.18759966,80812.0,80803.0,0.213557]
[1731284924500,0.18759966,80812.0,80803.0,0.21603163]
[1731284924712,0.247455,80823.0,80803.0,0.213557]
[1731284924915,0.123747,80810.0,80803.0,0.0828]
[1731284925117,0.123747,80810.0,80791.0,0.002]
[1731284925118,0.247496,80810.0,80791.0,0.002]
[1731284925641,0.247496,80810.0,80792.0,0.123773]
[1731284925843,0.123777,80790.0,80780.0,0.002]
[1731284926082,0.0259078,80804.0,80776.0,0.18759966]
[1731284926307,0.14894221,80803.0,80776.0,0.18759966]
[1731284926539,0.1,80802.0,80776.0,0.18259966]
[1731284926733,0.1,80799.0,80776.0,0.18259966]
[1731284926964,0.1,80797.0,80776.0,0.18259966]
[1731284927174,0.12594221,80796.0,80776.0,0.18259966]
[1731284927385,0.123793,80780.0,80776.0,0.18259966]
[1731284927533,0.1,80794.0,80776.0,0.18259966]
[1731284927700,0.123797,80777.0,80776.0,0.18259966]
[1731284928094,0.123803,80773.0,80767.0,0.18759966]
[1731284928490,0.12381,80769.0,80761.0,0.0463]
[1731284928678,0.247558,80789.0,80765.0,0.18759966]
[1731284928903,0.123789,80782.0,80762.0,0.12594221]
[1731284929040,0.123813,80767.0,80764.0,0.18759966]
[1731284929238,0.023,80785.0,80756.0,0.0828]
[1731284929539,0.12382,80762.0,80756.0,0.0828]
[1731284929742,0.123816,80765.0,80756.0,0.0828]
[1731284929948,0.247622,80769.0,80756.0,0.0828]
[1731284929949,0.123817,80764.0,80758.0,0.002]
[1731284930167,0.247625,80767.0,80756.0,0.0848]
[1731284930364,0.123818,80764.0,80756.0,0.0828]
[1731284930564,0.18759966,80783.0,80756.0,0.0848]
[1731284930787,0.123791,80781.0,80756.0,0.0848]
[1731284930957,0.123817,80765.0,80756.0,0.0828]
[1731284931333,0.12594221,80780.0,80753.0,0.18759966]
[1731284931334,0.247592,80778.0,80753.0,0.18759966]
[1731284931522,0.123832,80754.0,80753.0,0.18759966]
[1731284931768,0.123835,80753.0,80747.0,0.002]
[1731284931972,0.495202,80775.0,80747.0,0.002]
[1731284931973,0.247648,80760.0,80747.0,0.002]
[1731284932184,0.123828,80758.0,80747.0,0.125843]
[1731284932397,0.247637,80764.0,80747.0,0.002]
[1731284932594,0.247637,80764.0,80746.0,0.0771]
[1731284932595,0.123832,80755.0,80746.0,0.0771]
[1731284932750,0.247637,80764.0,80746.0,0.0771]
[1731284932751,0.247647,80760.0,80746.0,0.20304221]
[1731284933115,0.24765,80759.0,80746.0,0.0771]
[1731284933265,0.18759966,80772.0,80746.0,0.0771]
[1731284933469,0.26335051,80771.0,80746.0,0.0771]
[1731284933649,0.47355721,80771.0,80753.0,0.18759966]
[1731284933851,0.18759966,80761.0,80742.0,0.002]
[1731284934223,0.26299966,80770.0,80753.0,0.18759966]
[1731284934224,0.123832,80754.0,80753.0,0.18759966]
[1731284934429,0.123846,80745.0,80744.0,0.18759966]
[1731284934635,0.123844,80747.0,80744.0,0.18759966]
[1731284934970,0.123844,80747.0,80737.0,0.24980021]
[1731284934971,0.247685,80748.0,80746.0,0.00168]
[1731284935198,0.123843,80747.0,80746.0,0.00168]
[1731284935600,0.123841,80749.0,80746.0,0.00168]
[1731284935829,0.247677,80751.0,80746.0,0.00168]
[1731284936026,0.123843,80747.0,80746.0,0.00168]
[1731284936967,0.00084,80756.0,80746.0,0.00368]
[1731284937188,0.123839,80750.0,80746.0,0.00368]
[1731284937630,0.123843,80747.0,80746.0,0.00168]
[1731284938093,0.123843,80747.0,80728.0,0.252745]
[1731284938094,0.123849,80744.0,80736.0,0.002]
[1731284938552,0.123849,80744.0,80733.0,0.247729]
[1731284938757,0.123849,80744.0,80738.0,0.123856]
[1731284939193,0.03671331,80750.0,80737.0,0.002]
[1731284939402,0.123847,80745.0,80738.0,0.123856]
[1731284940035,0.247693,80745.0,80736.0,0.12386]
[1731284940259,0.123852,80741.0,80733.0,0.247729]
[1731284940463,0.05506997,80748.0,80733.0,0.247729]
[1731284940464,0.03671331,80740.0,80739.0,0.123855]
[1731284940681,0.05506997,80743.0,80738.0,0.247714]
[1731284940682,0.03671331,80743.0,80738.0,0.247714]
[1731284940901,0.03671331,80743.0,80740.0,0.123853]
[1731284941119,0.16056331,80743.0,80738.0,0.123857]
[1731284941332,0.16055931,80745.0,80739.0,0.123854]
[1731284941563,0.16056031,80745.0,80738.0,0.123856]
[1731284941757,0.247696,80744.0,80734.0,0.002]
[1731284941915,0.12385,80743.0,80737.0,0.123858]
[1731284942134,0.123848,80744.0,80736.0,0.24772]
[1731284942303,0.123851,80742.0,80737.0,0.123858]
[1731284942505,0.12386,80736.0,80728.0,0.002]
[1731284942739,0.28441231,80743.0,80729.0,0.12594221]
[1731284942938,0.05506997,80746.0,80731.0,0.123867]
[1731284942939,0.123859,80737.0,80731.0,0.123867]
[1731284943138,0.123859,80737.0,80726.0,0.43734866]
[1731284943139,0.03671331,80741.0,80726.0,0.18759966]
[1731284943400,0.12387,80730.0,80726.0,0.31354187]
[1731284943613,0.247724,80735.0,80726.0,0.31354187]
[1731284943821,0.123863,80735.0,80732.0,0.002]
[1731284944144,0.123878,80724.0,80723.0,0.0782]
[1731284944387,0.03671331,80736.0,80718.0,0.18759966]
[1731284944628,0.123877,80725.0,80719.0,0.24982721]
[1731284944804,0.247748,80727.0,80721.0,0.123882]
[1731284944805,0.123874,80727.0,80721.0,0.123882]
[1731284945014,0.371595,80733.0,80722.0,0.12388]
[1731284945223,0.247727,80734.0,80720.0,0.24777]
[1731284945454,0.123871,80729.0,80721.0,0.247766]
[1731284945936,0.03687983,80736.0,80714.0,0.0487]
[1731284946110,0.123875,80727.0,80718.0,0.18759966]
[1731284946319,0.123878,80725.0,80718.0,0.31354187]
[1731284946731,0.123878,80725.0,80720.0,0.123884]
[1731284947107,0.03687983,80737.0,80714.0,0.0487]
[1731284947346,0.123873,80728.0,80716.0,0.247782]
[1731284947512,0.123877,80725.0,80719.0,0.123885]
[1731284947715,0.03645081,80737.0,80719.0,0.123886]
[1731284947926,0.123877,80726.0,80717.0,0.12594221]
[1731284948128,0.03645081,80737.0,80718.0,0.18759966]
[1731284948334,0.01094923,80738.0,80718.0,0.247776]
[1731284948539,0.03687983,80738.0,80718.0,0.18759966]
[1731284948780,0.12594221,80737.0,80714.0,0.123892]
[1731284948983,0.16282204,80737.0,80718.0,0.18759966]
[1731284949194,0.03687983,80736.0,80718.0,0.18759966]
[1731284949392,0.123885,80720.0,80718.0,0.18759966]
[1731284949685,0.123886,80719.0,80718.0,0.18759966]
[1731284949881,0.247763,80723.0,80705.0,0.0816]
[1731284950179,0.25188442,80735.0,80707.0,0.123904]
[1731284950180,0.123897,80712.0,80707.0,0.123904]
[1731284950604,0.0368595,80726.0,80705.0,0.0816]
[1731284950813,0.123899,80711.0,80706.0,0.123906]
[1731284950991,0.24776,80723.0,80707.0,0.123904]
[1731284951204,0.24776,80723.0,80708.0,0.002]
[1731284951402,0.123895,80714.0,80708.0,0.125902]
[1731284951608,0.123895,80714.0,80709.0,0.123901]
[1731284952145,0.247783,80716.0,80706.0,0.18759966]
[1731284952286,0.123896,80713.0,80708.0,0.123902]
[1731284952529,0.247766,80721.0,80707.0,0.123904]
[1731284952737,0.18759966,80722.0,80707.0,0.123904]
[1731284952947,0.18759966,80721.0,80705.0,0.0816]
[1731284953155,0.09843606,80720.0,80700.0,0.002]
[1731284953382,0.247815,80706.0,80697.0,0.0788]
[1731284953581,0.65935632,80718.0,80697.0,0.12392]
[1731284953862,0.65935632,80718.0,80689.0,0.326664]
[1731284953863,0.24784,80697.0,80689.0,0.0788]
[1731284954072,0.123923,80695.0,80694.0,0.18759966]
[1731284954288,0.123923,80695.0,80689.0,0.0788]
[1731284954289,0.123918,80699.0,80689.0,0.326662]
[1731284954498,0.247831,80701.0,80690.0,0.18759966]
[1731284954661,0.371746,80700.0,80690.0,0.12393]
[1731284955053,0.123923,80695.0,80687.0,0.123935]
[1731284955261,0.0495644,80701.0,80688.0,0.002]
[1731284955467,0.123921,80697.0,80690.0,0.123929]
[1731284955674,0.123921,80697.0,80691.0,0.123929]
[1731284955785,0.247831,80700.0,80686.0,0.003682]
[1731284955786,0.123916,80700.0,80694.0,0.123923]
[1731284955987,0.247825,80702.0,80694.0,0.123923]
[1731284956189,0.123914,80701.0,80692.0,0.123927]
[1731284956446,0.65935632,80706.0,80686.0,0.003682]
[1731284956590,0.65935632,80705.0,80694.0,0.123924]
[1731284956799,0.123914,80701.0,80695.0,0.123922]
[1731284957034,0.90717232,80705.0,80699.0,0.18759966]
[1731284957035,0.65935632,80705.0,80699.0,0.18759966]
[1731284957241,0.65935632,80705.0,80699.0,0.002]
[1731284957443,0.65935632,80705.0,80704.0,0.123909]
[1731284957649,0.65935632,80705.0,80700.0,0.247828]
[1731284957890,0.65935632,80705.0,80702.0,0.123912]
[1731284958215,0.65935632,80705.0,80700.0,0.371742]
[1731284958431,0.65935632,80728.0,80704.0,0.18759966]
[1731284958631,0.18759966,80723.0,80702.0,0.00247786]
[1731284958770,0.123882,80722.0,80708.0,0.371709]
[1731284958977,0.18759966,80723.0,80704.0,0.18759966]
[1731284958978,0.18759966,80723.0,80705.0,0.247816]
[1731284959204,0.65935632,80726.0,80717.0,0.123888]
[1731284959553,0.65935632,80730.0,80717.0,0.002]
[1731284959689,0.65935632,80730.0,80729.0,0.123871]
[1731284959904,0.78321132,80740.0,80730.0,0.123868]
[1731284960131,0.78321032,80740.0,80731.0,0.123867]
[1731284960330,0.65935632,80740.0,80724.0,0.002]
[1731284960570,0.65935632,80740.0,80731.0,0.123867]
[1731284960730,0.65935632,80740.0,80727.0,0.247748]
[1731284960731,0.123855,80739.0,80727.0,0.247748]
[1731284960924,0.123858,80738.0,80728.0,0.123871]
[1731284961186,0.123858,80738.0,80729.0,0.12387]
[1731284961389,0.65935632,80740.0,80726.0,0.18759966]
[1731284961390,0.1,80739.0,80732.0,0.123865]
[1731284961590,0.123859,80737.0,80728.0,0.123872]
[1731284961851,0.123859,80737.0,80726.0,0.18759966]
[1731284961852,0.123857,80738.0,80729.0,0.12387]
[1731284962057,0.123857,80738.0,80716.0,0.0816]
[1731284962058,0.1,80737.0,80716.0,0.0816]
[1731284962271,0.1,80737.0,80707.0,0.081]
[1731284962272,0.12594221,80736.0,80707.0,0.081]
[1731284962409,0.123885,80720.0,80712.0,0.123896]
[1731284962613,0.123885,80720.0,80711.0,0.123898]
[1731284962846,0.21228665,80731.0,80711.0,0.123898]
[1731284962847,0.21228665,80731.0,80712.0,0.247793]
[1731284963055,0.123882,80722.0,80713.0,0.18759966]
[1731284963266,0.123883,80722.0,80713.0,0.18759966]
[1731284963475,0.123883,80722.0,80714.0,0.123893]
[1731284963664,0.18759966,80735.0,80696.0,0.005]
[1731284963895,0.18759966,80735.0,80576.0,0.5]
[1731284963896,0.123882,80722.0,80705.0,0.12794221]
[1731284964093,0.123882,80722.0,80714.0,0.123893]
[1731284964659,0.123879,80724.0,80715.0,0.123892]
[1731284964860,0.247757,80725.0,80711.0,0.247795]
[1731284964861,0.12388,80723.0,80716.0,0.12389]
[1731284965060,0.24773,80733.0,80705.0,0.12794221]
[1731284965061,0.123886,80720.0,80708.0,0.123903]
[1731284965263,0.123886,80720.0,80712.0,0.123896]
[1731284965469,0.123883,80721.0,80709.0,0.123901]
[1731284965663,0.123883,80721.0,80712.0,0.123896]
[1731284965989,0.24776,80724.0,80705.0,0.12594221]
[1731284965990,0.65935632,80734.0,80730.0,0.123869]
[1731284966312,0.65935632,80734.0,80705.0,0.12594221]
[1731284966313,0.84695598,80733.0,80729.0,0.12387]
[1731284966455,0.18759966,80731.0,80715.0,0.002]
[1731284966657,0.18759966,80731.0,80715.0,0.123892]
[1731284966658,0.123878,80725.0,80715.0,0.123892]
[1731284966911,0.247748,80727.0,80714.0,0.18759966]
[1731284967123,0.12594221,80730.0,80706.0,0.247813]
[1731284967124,0.247766,80722.0,80706.0,0.247813]
[1731284967292,0.65935632,80729.0,80713.0,0.18759966]
[1731284967585,0.123888,80718.0,80704.0,0.18759966]
[1731284967795,0.123888,80718.0,80713.0,0.18759966]
[1731284968008,0.123888,80718.0,80709.0,0.123901]
[1731284968213,0.12594221,80728.0,80705.0,0.247816]
[1731284968427,0.123889,80718.0,80709.0,0.1239]
[1731284968653,0.123889,80717.0,80709.0,0.1239]
[1731284968813,0.12594221,80727.0,80704.0,0.18759966]
[1731284969010,0.123895,80713.0,80705.0,0.123907]
[1731284969348,0.20464221,80726.0,80704.0,0.18759966]
[1731284969580,0.12594221,80725.0,80705.0,0.247816]
[1731284969718,0.123893,80715.0,80707.0,0.123903]
[1731284970268,0.123893,80715.0,80708.0,0.123902]
[1731284970784,0.123894,80714.0,80706.0,0.247813]
[1731284970989,0.123892,80716.0,80708.0,0.123902]
[1731284971121,0.123892,80716.0,80706.0,0.247813]
[1731284971122,0.12594221,80724.0,80710.0,0.123899]
[1731284971334,0.123893,80715.0,80708.0,0.123902]
[1731284971537,0.123893,80715.0,80708.0,0.125902]
[1731284971928,0.123887,80719.0,80708.0,0.002]
[1731284972123,0.123891,80716.0,80708.0,0.002]
[1731284972403,0.123889,80718.0,80710.0,0.123899]
[1731284972628,0.65935632,80723.0,80710.0,0.247798]
[1731284972837,0.123889,80718.0,80710.0,0.123899]
[1731284972981,0.12389,80717.0,80710.0,0.123899]
[1731284973393,0.371649,80721.0,80708.0,0.123902]
[1731284973568,0.123892,80716.0,80708.0,0.123902]
[1731284973773,0.123892,80716.0,80709.0,0.123901]
[1731284974195,0.123888,80718.0,80710.0,0.123899]
[1731284974394,0.18759966,80719.0,80698.0,0.007]
[1731284974594,0.37370721,80722.0,80705.0,0.18759966]
[1731284974779,0.12594221,80722.0,80705.0,0.18759966]
[1731284974980,0.65935632,80723.0,80706.0,0.00247806]
[1731284975215,0.65935632,80723.0,80721.0,0.123882]
[1731284975791,0.65935632,80723.0,80717.0,0.123888]
[1731284976463,0.65935632,80723.0,80718.0,0.123887]
[1731284977507,0.123875,80726.0,80718.0,0.123887]
[1731284977634,0.65935632,80727.0,80721.0,0.123882]
[1731284978053,0.65935632,80727.0,80716.0,0.247782]
[1731284978256,0.65935632,80727.0,80726.0,0.125875]
[1731284978453,0.65935632,80728.0,80715.0,0.18759966]
[1731284978754,0.65935632,80728.0,80723.0,0.123879]
[1731284978971,0.65935632,80728.0,80723.0,0.003879]
[1731284979173,0.123874,80727.0,80716.0,0.247782]
[1731284979737,0.123874,80727.0,80718.0,0.123887]
[1731284979941,0.123874,80727.0,80715.0,0.18759966]
[1731284980171,0.123874,80727.0,80719.0,0.123886]
[1731284980850,0.123875,80726.0,80719.0,0.123886]
[1731284981185,0.65935632,80728.0,80718.0,0.247776]
[1731284981388,0.78322932,80728.0,80720.0,0.125884]
[1731284981587,0.78322932,80728.0,80720.0,0.123884]
[1731284981829,0.78322932,80728.0,80718.0,0.371663]
[1731284981830,0.123874,80727.0,80718.0,0.371663]
[1731284982013,0.123876,80726.0,80718.0,0.123887]
[1731284982519,0.16082898,80726.0,80718.0,0.123887]
[1731284983176,0.03695298,80726.0,80719.0,0.123885]
[1731284984062,0.16082998,80726.0,80717.0,0.123889]
[1731284984271,0.11344417,80725.0,80709.0,0.247802]
[1731284984530,0.03695298,80724.0,80710.0,0.18759966]
[1731284984742,0.28471298,80723.0,80710.0,0.31149866]
[1731284984897,0.371649,80721.0,80710.0,0.18759966]
[1731284985101,0.123886,80719.0,80711.0,0.123898]
[1731284985509,0.03695298,80721.0,80710.0,0.18759966]
[1731284985510,0.123888,80718.0,80710.0,0.123899]
[1731284985707,0.02173644,80717.0,80708.0,0.00168]
[1731284985905,0.04803576,80721.0,80709.0,0.247803]
[1731284986270,0.03695298,80725.0,80724.0,0.123878]
[1731284986484,0.18759966,80727.0,80725.0,0.123875]
[1731284986686,0.65935632,80728.0,80725.0,0.123875]
[1731284986892,0.65935632,80728.0,80723.0,0.123879]
[1731284987090,0.65935632,80728.0,80703.0,0.005]
[1731284987091,0.65935632,80728.0,80725.0,0.123876]
[1731284987303,0.65935632,80728.0,80727.0,0.123874]
[1731284987438,0.03695298,80737.0,80730.0,0.247739]
[1731284987642,0.65935632,80738.0,80720.0,0.14137588]
[1731284987913,0.65935632,80738.0,80722.0,0.247763]
[1731284988115,0.65935632,80738.0,80732.0,0.123866]
[1731284988243,0.65935632,80738.0,80730.0,0.123868]
[1731284988461,0.65935632,80738.0,80732.0,0.123866]
[1731284988816,0.65935632,80738.0,80726.0,0.18759966]
[1731284989041,0.65935632,80738.0,80726.0,0.18959966]
[1731284989250,0.65935632,80738.0,80731.0,0.123866]
[1731284989673,0.65935632,80738.0,80731.0,0.003866]
[1731284989879,0.65935632,80738.0,80728.0,0.247745]
[1731284990087,0.78321332,80738.0,80731.0,0.123867]
[1731284990747,0.65935632,80738.0,80726.0,0.43734966]
[1731284990946,0.65935632,80738.0,80735.0,0.123861]
[1731284991060,0.65935632,80738.0,80734.0,0.123863]
[1731284991269,0.78321332,80738.0,80726.0,0.43734966]
[1731284991471,0.78321332,80738.0,80730.0,0.123868]
[1731284991666,0.65935632,80738.0,80731.0,0.123867]
[1731284992128,0.00084,80739.0,80733.0,0.123864]
[1731284992594,0.00084,80739.0,80730.0,0.247739]
[1731284992807,0.124696,80739.0,80732.0,0.123865]
[1731284993266,0.124696,80739.0,80729.0,0.249742]
[1731284993403,0.124696,80739.0,80730.0,0.123868]
[1731284993828,0.00084,80739.0,80733.0,0.123863]
[1731284994154,0.00084,80739.0,80729.0,0.249742]
[1731284994351,0.123857,80738.0,80732.0,0.123866]
[1731284994561,0.00084,80739.0,80732.0,0.123866]
[1731284994562,0.124695,80739.0,80732.0,0.123866]
[1731284994756,0.00084,80739.0,80729.0,0.002]
[1731284994975,0.123859,80737.0,80730.0,0.123869]
[1731284995141,0.00084,80739.0,80729.0,0.002]
[1731284995364,0.123857,80738.0,80729.0,0.002]
[1731284995747,0.123857,80738.0,80731.0,0.123867]
[1731284996165,0.00084,80739.0,80731.0,0.123867]
[1731284996347,0.123859,80737.0,80731.0,0.123867]
[1731284996577,0.123859,80737.0,80729.0,0.002]
[1731284996727,0.123859,80737.0,80729.0,0.12587]
[1731284996932,0.123859,80737.0,80729.0,0.002]
[1731284997142,0.12386,80736.0,80730.0,0.123869]
[1731284997751,0.123859,80737.0,80731.0,0.123868]
[1731284998254,0.66019632,80739.0,80729.0,0.002]
[1731284998436,0.123857,80738.0,80731.0,0.123867]
[1731284998648,0.123857,80738.0,80729.0,0.002]
[1731284998649,0.66019632,80739.0,80729.0,0.002]
[1731284998861,0.123859,80737.0,80729.0,0.002]
[1731284999065,0.66019632,80739.0,80729.0,0.002]
[1731284999887,0.78405232,80739.0,80728.0,0.002]
[1731285000509,0.66019632,80739.0,80728.0,0.002]
[1731285000713,0.247714,80738.0,80726.0,0.18759966]
[1731285000942,0.66019632,80739.0,80719.0,0.002]
[1731285000943,0.123874,80727.0,80719.0,0.002]
[1731285001159,0.123878,80724.0,80715.0,0.0811]
[1731285001337,0.12594221,80737.0,80715.0,0.0811]
[1731285001550,0.123878,80724.0,80715.0,0.0811]
[1731285001887,0.123878,80724.0,80709.0,0.002]
[1731285002303,0.123878,80724.0,80718.0,0.123887]
[1731285002658,0.123878,80724.0,80715.0,0.123891]
[1731285002812,0.123878,80724.0,80717.0,0.31148866]
[1731285003186,0.123878,80724.0,80718.0,0.123888]
[1731285003472,0.123878,80724.0,80710.0,0.247799]
[1731285003888,0.123878,80724.0,80712.0,0.123896]
[1731285004096,0.123878,80724.0,80708.0,0.51838366]
[1731285004097,0.123878,80724.0,80708.0,0.26857966]
[1731285004261,0.123878,80724.0,80713.0,0.123895]
[1731285004644,0.123878,80724.0,80714.0,0.123894]
[1731285004852,0.123878,80724.0,80710.0,0.247799]
[1731285005253,0.123878,80724.0,80711.0,0.123897]
[1731285005634,0.123878,80724.0,80708.0,0.26857966]
[1731285005842,0.123878,80724.0,80712.0,0.123896]
[1731285006043,0.123878,80724.0,80708.0,0.26857966]
[1731285006238,0.29826038,80724.0,80708.0,0.26857966]
[1731285006647,0.29826038,80724.0,80708.0,0.18927966]
[1731285006848,0.2983296,80724.0,80708.0,0.18927966]
[1731285007295,0.2983296,80724.0,80708.0,0.31318166]
[1731285008314,0.26130249,80724.0,80708.0,0.18927966]
[1731285008515,0.28430249,80724.0,80708.0,0.18927966]
[1731285008778,0.4102447,80724.0,80708.0,0.18927966]
[1731285008980,0.28430249,80724.0,80708.0,0.18927966]
[1731285009591,0.42097818,80724.0,80708.0,0.18927966]
[1731285010043,1.0803345,80724.0,80708.0,0.18927966]
[1731285010386,1.09190227,80724.0,80708.0,0.18927966]
[1731285010519,1.21784448,80724.0,80708.0,0.18927966]
[1731285010876,1.09190227,80724.0,80708.0,0.18927966]
[1731285011404,1.09189869,80724.0,80708.0,0.18927966]
[1731285011786,1.09189471,80724.0,80708.0,0.18927966]
[1731285012394,1.09689471,80724.0,80708.0,0.18927966]
[1731285013873,0.22227244,80724.0,80723.0,0.34693788]
[1731285014197,0.000841,80727.0,80726.0,0.125875]
[1731285015826,0.000841,80727.0,80726.0,0.38539439]
[1731285016022,0.000841,80727.0,80726.0,0.48291721]
[1731285016230,0.00084,80739.0,80738.0,0.39833288]
[1731285016573,0.00084,80739.0,80738.0,0.52427509]
[1731285016808,0.00084,80739.0,80738.0,0.37789921]
[1731285016999,0.00084,80739.0,80738.0,0.251957]
[1731285017201,0.00084,80739.0,80738.0,0.249957]
[1731285017503,0.00084,80739.0,80738.0,0.123857]
[1731285018007,0.00084,80739.0,80732.0,0.123865]
[1731285018229,0.00084,80739.0,80731.0,0.18759966]
[1731285018367,0.00084,80739.0,80736.0,0.123859]
[1731285018774,0.00084,80739.0,80737.0,0.123858]
[1731285019600,0.00084,80739.0,80734.0,0.123862]
[1731285020007,0.00084,80739.0,80735.0,0.123861]
[1731285020217,0.00084,80739.0,80737.0,0.123858]
[1731285020581,0.00084,80739.0,80738.0,0.39565221]
[1731285020818,0.00084,80739.0,80738.0,0.52537509]
[1731285021024,0.00084,80739.0,80738.0,0.38399921]
[1731285022505,0.1,80750.0,80742.0,0.130851]
[1731285022711,0.1,80750.0,80742.0,0.50864563]
[1731285022894,0.1,80750.0,80742.0,0.57855545]
[1731285023333,0.1,80750.0,80749.0,0.12884]
[1731285023538,0.1,80750.0,80749.0,0.33925867]
[1731285023748,0.1,80750.0,80749.0,0.33678221]
[1731285024268,0.1,80750.0,80749.0,0.44178221]
[1731285025895,0.1,80750.0,80749.0,0.43978221]
[1731285026155,0.1,80750.0,80749.0,0.43678221]
[1731285026358,0.1,80750.0,80749.0,0.12584]
[1731285026575,0.1,80750.0,80741.0,0.08]
[1731285026576,0.110084,80750.0,80737.0,0.002]
[1731285026821,0.110084,80750.0,80743.0,0.18759966]
[1731285026822,0.1,80750.0,80743.0,0.18759966]
[1731285027026,0.1,80750.0,80737.0,0.002]
[1731285027251,0.1,80750.0,80746.0,0.123844]
[1731285027678,0.1,80750.0,80740.0,0.249706]
[1731285027876,0.1,80750.0,80741.0,0.43530466]
[1731285028138,0.1,80750.0,80732.0,0.24773]
[1731285028139,0.1,80750.0,80737.0,0.002]
[1731285028364,0.1,80750.0,80738.0,0.247714]